[Event "World Chess Trophy 2018"]
[Site "Tenerife"]
[Date "2018.06.18"]
[Round "3"]
[White "Cacciola, Alfredo"]
[Black "Kosov, Alexey"]
[Result "1/2-1/2"]
[ECO "B60"]
[WhiteElo "2219"]
[BlackElo "2208"]
[Annotator "ChessBase"]
[PlyCount "106"]
[EventDate "2018.06.17"]
[EventType "swiss"]
[EventCountry "ESP"]
[SourceTitle "playchess.com"]
[Source "ChessBase"]
[SourceQuality "1"]
[TimeControl "5400+30"]

1. e4 {[%emt 0:00:00]} c5 {[%emt 0:01:03]} 2. Nf3 {[%emt 0:00:00]} d6 {[%emt 0:00:08]} 3. d4 {[%emt 0:00:00]} cxd4 {[%emt 0:00:03]} 4. Nxd4 {[%emt 0:00:00]} Nf6 {[%emt 0:00:07]} 5. Nc3 {[%emt 0:00:00]} Nc6 {[%emt 0:01:24]} 6. Bg5 {[%emt 0:00:07]} h6 {[%emt 0:02:22]} 7. Bxf6 {[%emt 0:00:08]} gxf6 {[%emt 0:00:04]} 8. Qd2 {[%emt 0:00:50]} Nxd4 {[%emt 0:00:42]} 9. Qxd4 {[%emt 0:00:02]} Bg7 {[%emt 0:00:08]} 10. f4 {[%emt 0:04:59]} O-O {[%emt 0:21:51]} 11. f5 {[%emt 0:03:40]} e6 {[%emt 0:14:49]} 12. O-O-O {[%emt 0:28:09]} exf5 {[%emt 0:01:01]} 13. Qxd6 {[%emt 0:27:47]} Qxd6 {[%emt 0:10:19]} 14. Rxd6 {[%emt 0:00:02]} Be6 {[%emt 0:20:00]} 15. exf5 {[%emt 0:07:27]} Bxf5 {[%emt 0:00:04]} 16. Bd3 {[%emt 0:05:23]} Be6 {[%emt 0:00:01]} 17. Rf1 {[%emt 0:02:39]} Rac8 {[%emt 0:07:58]} 18. Nd5 {[%emt 0:04:44]} Bxd5 {[%emt 0:03:39]} 19. Rxd5 {[%emt 0:00:01]} Rfd8 {[%emt 0:00:12]} 20. Be4 {[%emt 0:01:14]} Rxd5 {[%emt 0:00:23]} 21. Bxd5 {[%emt 0:00:01]} b6 {[%emt 0:01:03]} 22. g4 {[%emt 0:00:31]} Re8 {[%emt 0:00:56]} 23. Kd2 {[%emt 0:01:19]} Re5 {[%emt 0:01:55]} 24. c4 {[%emt 0:02:04]} h5 {[%emt 0:00:01]} 25. h3 {[%emt 0:02:01]} Bh6+ {[%emt 0:00:09]} 26. Kd1 {[%emt 0:01:08]} Kg7 {[%emt 0:03:05]} 27. Rf5 {[%emt 0:02:27]} hxg4 {[%emt 0:01:20]} 28. hxg4 {[%emt 0:00:01]} Rxf5 {[%emt 0:00:13]} 29. gxf5 {[%emt 0:00:01]} Kf8 {[%emt 0:00:15]} 30. Ke2 {[%emt 0:00:08]} Bf4 {[%emt 0:00:04]} 31. b4 {[%emt 0:02:09]} Bd6 {[%emt 0:00:26]} 32. a3 {[%emt 0:00:05]} a5 {[%emt 0:00:05]} 33. c5 {[%emt 0:00:59]} Bc7 {[%emt 0:04:30]} 34. bxa5 {[%emt 0:02:05]} bxa5 {[%emt 0:00:01]} 35. Kd3 {[%emt 0:00:39]} Ke7 {[%emt 0:00:51]} 36. Kc4 {[%emt 0:00:08]} Kd7 {[%emt 0:00:09]} 37. Kb5 {[%emt 0:00:10]} Kc8 {[%emt 0:00:23]} 38. Bxf7 {[%emt 0:01:12]} Kb8 {[%emt 0:00:13]} 39. Be6 {[%emt 0:00:55]} Bd8 {[%emt 0:00:17]} 40. Kc6 {[%emt 0:00:29]} Bc7 {[%emt 0:00:02]} 41. a4 {[%emt 0:01:06]} Be5 {[%emt 0:00:29]} 42. Kb6 {[%emt 0:00:54]} Bc7+ {[%emt 0:00:40]} 43. Ka6 {[%emt 0:00:03]} Bd8 {[%emt 0:00:12]} 44. Kb5 {[%emt 0:00:57]} Bc7 {[%emt 0:00:03]} 45. Bd7 {[%emt 0:00:21]} Bd8 {[%emt 0:00:57]} 46. Kc6 {[%emt 0:00:18]} Bc7 {[%emt 0:00:14]} 47. Be8 {[%emt 0:00:18]} Be5 {[%emt 0:00:59]} 48. Bf7 {[%emt 0:00:06]} Bc7 {[%emt 0:00:25]} 49. Bc4 {[%emt 0:00:03]} Be5 {[%emt 0:00:05]} 50. Ba6 {[%emt 0:00:07]} Bc7 {[%emt 0:00:13]} 51. Kd7 {[%emt 0:00:06]} Be5 {[%emt 0:00:08]} 52. c6 {[%emt 0:00:13]} Bf4 {[%emt 0:00:21]} 53. Ke6 {[%emt 0:01:24]} Be5 {[%emt 0:00:06]} 1/2-1/2

[Event "World Chess Trophy 2018"]
[Site "Tenerife"]
[Date "2018.06.18"]
[Round "3"]
[White "Kovacs, Zoltan"]
[Black "Kohlweyer, Bernd"]
[Result "1/2-1/2"]
[ECO "A11"]
[WhiteElo "2146"]
[BlackElo "2345"]
[Annotator "NA"]
[PlyCount "49"]
[EventDate "2018.06.17"]
[EventType "swiss"]
[EventCountry "ESP"]
[SourceTitle "playchess.com"]
[Source "ChessBase"]
[SourceQuality "1"]
[TimeControl "5400+30"]

1. Nf3 {[%emt 0:00:00]} Nf6 {[%emt 0:00:30]} 2. g3 {[%emt 0:00:00]} d5 {[%emt 0:00:07]} 3. Bg2 {[%emt 0:00:00]} c6 {[%emt 0:02:36]} 4. c4 {[%emt 0:00:08]} dxc4 {[%emt 0:04:14]} 5. O-O {[%emt 0:03:51]} g6 {[%emt 0:00:34]} 6. Na3 {[%emt 0:00:23]} Bg7 {[%emt 0:00:07]} 7. Nxc4 {[%emt 0:00:55]} Be6 {[%emt 0:00:44]} 8. d3 {[%emt 0:00:25]} O-O {[%emt 0:00:48]} 9. Bd2 {[%emt 0:00:15]} Ne8 {[%emt 0:08:03]} 10. Qc2 {[%emt 0:03:24]} Nd6 {[%emt 0:00:25]} 11. Nxd6 {[%emt 0:00:54]} exd6 {[%emt 0:02:51]} 12. Bc3 {[%emt 0:00:50]} a5 {[%emt 0:03:30]} 13. Nd4 {[%emt 0:09:00]} Bd7 {[%emt 0:00:45]} 14. Qb3 {[%emt 0:16:23]} Ra7 {[%emt 0:01:54]} 15. a4 {[%emt 0:08:09]} Na6 {[%emt 0:02:41]} 16. Qa3 {[%emt 0:05:09]} Nb4 {[%emt 0:02:36]} 17. Qb3 {[%emt 0:12:28]} Qb6 {[%emt 0:08:45]} 18. Nf3 {[%emt 0:04:35]} Be6 {[%emt 0:05:17]} 19. Qd1 {[%emt 0:00:04]} Bg4 {[%emt 0:00:47]} 20. Qd2 {[%emt 0:02:13]} Nd5 {[%emt 0:03:14]} 21. Bxg7 {[%emt 0:00:20]} Kxg7 {[%emt 0:00:10]} 22. h3 {[%emt 0:07:33]} Bxf3 {[%emt 0:02:00]} 23. Bxf3 {[%emt 0:00:08]} Nb4 $11 {[%emt 0:04:19]} 24. h4 {[%emt 0:01:05]} Qd8 {[%emt 0:05:19]} 25. Qf4 {[%emt 0:01:56]} 1/2-1/2

[Event "World Chess Trophy 2018"]
[Site "Tenerife"]
[Date "2018.06.18"]
[Round "3"]
[White "De Rosa, Mariagrazia"]
[Black "Steiner, Juraj"]
[Result "1-0"]
[ECO "B36"]
[WhiteElo "2120"]
[BlackElo "2001"]
[Annotator "NA"]
[PlyCount "101"]
[EventDate "2018.06.17"]
[EventType "swiss"]
[EventCountry "ESP"]
[SourceTitle "playchess.com"]
[Source "ChessBase"]
[SourceQuality "1"]
[TimeControl "5400+30"]

1. e4 {[%emt 0:00:00]} c5 {[%emt 0:00:13]} 2. Nf3 {[%emt 0:00:00]} g6 {[%emt 0:00:15]} 3. d4 {[%emt 0:00:04]} cxd4 {[%emt 0:00:13]} 4. Nxd4 {[%emt 0:01:12]} Nc6 {[%emt 0:00:26]} 5. c4 {[%emt 0:01:10]} Nf6 {[%emt 0:00:33]} 6. Nc3 {[%emt 0:00:27]} d6 {[%emt 0:00:39]} 7. Be2 {[%emt 0:03:50]} Nxd4 {[%emt 0:00:54]} 8. Qxd4 {[%emt 0:00:05]} Bg7 {[%emt 0:00:15]} 9. Be3 {[%emt 0:02:11]} O-O {[%emt 0:00:23]} 10. Qd2 {[%emt 0:00:12]} Be6 {[%emt 0:00:54]} 11. Rc1 {[%emt 0:13:06]} Qa5 {[%emt 0:01:39]} 12. O-O {[%emt 0:02:20]} Rfc8 {[%emt 0:00:37]} 13. b3 {[%emt 0:01:16]} a6 {[%emt 0:00:51]} 14. f3 {[%emt 0:29:03]} b5 {[%emt 0:06:09]} 15. Nd5 {[%emt 0:23:14]} Qxd2 {[%emt 0:00:31]} 16. Bxd2 {[%emt 0:00:27]} Nxd5 {[%emt 0:01:03]} 17. cxd5 {[%emt 0:02:15]} Bd4+ {[%emt 0:01:16]} 18. Kh1 {[%emt 0:00:04]} Bd7 {[%emt 0:00:12]} 19. Rxc8+ {[%emt 0:03:54]} Rxc8 {[%emt 0:00:45]} 20. Rc1 {[%emt 0:00:20]} Rxc1+ {[%emt 0:01:21]} 21. Bxc1 {[%emt 0:00:05]} a5 {[%emt 0:01:51]} 22. g4 {[%emt 0:02:19]} b4 {[%emt 0:03:32]} 23. Kg2 {[%emt 0:06:24]} f5 {[%emt 0:01:15]} 24. gxf5 {[%emt 0:05:41]} gxf5 {[%emt 0:00:10]} 25. Kg3 {[%emt 0:02:13]} Kf7 {[%emt 0:02:52]} 26. Bg5 {[%emt 0:00:28]} a4 {[%emt 0:13:38]} 27. Bd3 {[%emt 0:00:32]} fxe4 {[%emt 0:11:46]} 28. Bxe4 {[%emt 0:00:15]} Bb5 {[%emt 0:01:24]} 29. Bxh7 {[%emt 0:00:31]} e6 {[%emt 0:08:40]} (29... axb3 $16 30. axb3 Be5+ 31. f4 Bf6) 30. dxe6+ {[%emt 0:00:42]} Kxe6 {[%emt 0:00:05]} 31. bxa4 {[%emt 0:00:33]} Bxa4 {[%emt 0:00:08]} 32. Bg8+ {[%emt 0:00:21]} Kf5 {[%emt 0:00:21]} 33. h4 {[%emt 0:00:14]} Kg6 {[%emt 0:03:24]} 34. Bd5 {[%emt 0:00:27]} Bd7 $1 {[%emt 0:00:50]} 35. Be4+ {[%emt 0:00:50]} Kh5 $2 {[%emt 0:00:41] [#]} 36. Bd5 $2 {[%emt 0:00:37]} (36. f4 $1 $18 {[%cal Rf4f5]} Bb5 37. Bd5) 36... Kg6 {[%emt 0:00:11]} 37. f4 {[%emt 0:00:33]} Bf5 {[%emt 0:00:23]} 38. Kf3 {[%emt 0:01:05]} Kg7 {[%emt 0:04:34]} 39. h5 {[%emt 0:00:00]} Bc2 {[%emt 0:01:06]} 40. h6+ {[%emt 0:00:00]} Kh8 {[%emt 0:00:21]} 41. Kg4 {[%emt 0:00:41]} Bh7 {[%emt 0:02:37]} (41... Bd1+ $142 42. Kf5 Bc2+ 43. Be4 b3 44. axb3 Bxb3 45. Bf6+ Bxf6) 42. f5 {[%emt 0:00:30]} Bg8 {[%emt 0:00:10]} 43. Be6 {[%emt 0:00:45]} d5 {[%emt 0:00:57]} 44. Kf4 {[%emt 0:00:29]} (44. Be7 $142 Bc3 45. Kh5 Bxe6 46. fxe6) 44... Bb2 {[%emt 0:02:49]} 45. Bxg8 {[%emt 0:00:24]} Kxg8 {[%emt 0:00:38]} 46. f6 {[%emt 0:00:25]} Bd4 {[%emt 0:04:34]} 47. Kf5 {[%emt 0:00:15]} Kh7 {[%emt 0:02:50]} 48. f7 {[%emt 0:00:31]} Bc5 {[%emt 0:00:15]} 49. Ke6 {[%emt 0:00:09]} Bf8 {[%emt 0:00:57]} 50. Kxd5 {[%emt 0:00:39]} Kg6 {[%emt 0:01:10]} 51. Ke6 {[%emt 0:00:08]} 1-0

[Event "World Chess Trophy 2018"]
[Site "Tenerife"]
[Date "2018.06.18"]
[Round "3"]
[White "Kraus, Oliver"]
[Black "Efremov, Vladislav"]
[Result "0-1"]
[ECO "A45"]
[WhiteElo "2044"]
[BlackElo "1968"]
[Annotator "NA"]
[PlyCount "90"]
[EventDate "2018.06.17"]
[EventType "swiss"]
[EventCountry "ESP"]
[SourceTitle "playchess.com"]
[Source "ChessBase"]
[SourceQuality "1"]
[TimeControl "5400+30"]

{[%evp 37,90,-52,-13,-13,6,0,0,0,14,6,32767,32767,-5,-18,0,0,-14,-33,32767,32767,-11,-45,-56,-77,-91,-85,-87,-91,-89,32767,32767,32767,32767,32767,-172,-187,-166,-270,-202,32767,32767,32767,-331,-457,-357,-472,-361,-320,-366,-376,-375,-450,-420,-420,-443]} 1. d4 {[%emt 0:02:38]} Nf6 {[%emt 0:00:10]} 2. Bg5 {[%emt 0:01:45]} e6 {[%emt 0:00:32]} 3. e4 {[%emt 0:00:56]} h6 {[%emt 0:01:05]} 4. Bxf6 {[%emt 0:00:12]} Qxf6 {[%emt 0:00:05]} 5. Nc3 {[%emt 0:02:36]} Bb4 {[%emt 0:03:08]} 6. Qd2 {[%emt 0:01:32]} d6 {[%emt 0:07:08]} 7. a3 {[%emt 0:04:14]} Bxc3 {[%emt 0:03:53]} 8. bxc3 {[%emt 0:00:11]} e5 {[%emt 0:02:19]} 9. Nf3 {[%emt 0:03:12]} O-O {[%emt 0:04:49]} 10. h3 {[%emt 0:10:25]} Re8 {[%emt 0:02:28]} 11. Qe3 {[%emt 0:05:51]} Qg6 {[%emt 0:08:53]} 12. d5 {[%emt 0:09:05]} Qf6 {[%emt 0:12:58]} 13. g3 {[%emt 0:06:25]} a6 {[%emt 0:04:35]} 14. Bg2 {[%emt 0:00:35]} Nd7 {[%emt 0:00:07]} 15. O-O {[%emt 0:00:59]} Nc5 {[%emt 0:04:10]} 16. Nd2 {[%emt 0:02:47]} h5 {[%emt 0:09:54]} 17. f4 {[%emt 0:25:36]} Qh6 {[%emt 0:06:24]} 18. Qf2 {[%emt 0:02:36]} Nd7 {[%emt 0:04:26]} 19. Nc4 {[%emt 0:02:24]} Qg6 {[%emt 0:03:26]} 20. Rae1 {[%emt 0:02:48]} Nf6 {[%emt 0:04:54]} 21. fxe5 {[%emt 0:04:03]} dxe5 {[%emt 0:00:05]} 22. Qf3 {[%emt 0:03:56]} Bd7 {[%emt 0:02:12]} 23. Ne3 {[%emt 0:00:32]} Nh7 {[%emt 0:02:30]} 24. Nf5 {[%emt 0:03:23]} Bxf5 {[%emt 0:02:59]} 25. Qxf5 {[%emt 0:00:43]} Qxf5 {[%emt 0:00:19]} 26. Rxf5 {[%emt 0:00:14]} g6 {[%emt 0:00:16]} 27. Rf2 {[%emt 0:00:57]} Nf8 {[%emt 0:00:43]} 28. Rb1 {[%emt 0:01:24]} Rab8 {[%emt 0:00:29]} 29. Bf3 {[%emt 0:01:19]} Nd7 {[%emt 0:01:14]} 30. g4 {[%emt 0:00:30]} hxg4 {[%emt 0:00:29]} 31. hxg4 {[%emt 0:00:22]} Kg7 {[%emt 0:00:33]} 32. g5 {[%emt 0:00:31]} Nc5 {[%emt 0:00:27]} 33. Bg2 {[%emt 0:00:58]} Rh8 {[%emt 0:00:27]} 34. Bf3 {[%emt 0:00:30]} Rh4 {[%emt 0:00:11]} 35. Re1 {[%emt 0:00:41]} Rbh8 {[%emt 0:00:32]} 36. Ree2 {[%emt 0:00:27]} Rf4 {[%emt 0:00:29]} 37. Bg2 {[%emt 0:00:31]} (37. c4 $142) 37... Rxf2 {[%emt 0:00:22]} 38. Rxf2 {[%emt 0:00:30]} Rh5 {[%emt 0:00:04]} 39. Kf1 {[%emt 0:00:35]} Rxg5 {[%emt 0:00:10]} 40. Rd2 {[%emt 0:00:32]} Rg4 {[%emt 0:00:37]} 41. Re2 {[%emt 0:00:08]} Rf4+ {[%emt 0:00:40]} 42. Ke1 {[%emt 0:00:13]} Kh6 {[%emt 0:00:30]} 43. Kd2 {[%emt 0:00:22]} Kg5 {[%emt 0:00:08]} 44. c4 {[%emt 0:01:01]} Kh4 {[%emt 0:00:54]} 45. Ke3 {[%emt 0:00:47]} f5 $19 {[%emt 0:00:53] Kd4 [%clk 0:00:00]} 0-1

[Event "World Chess Trophy 2018"]
[Site "Tenerife"]
[Date "2018.06.18"]
[Round "3"]
[White "Harstad, Christian"]
[Black "Heimbaecher, Peter"]
[Result "1/2-1/2"]
[ECO "A40"]
[WhiteElo "1985"]
[BlackElo "1758"]
[Annotator "NA RC"]
[PlyCount "146"]
[EventDate "2018.06.17"]
[EventType "swiss"]
[EventCountry "ESP"]
[SourceTitle "playchess.com"]
[Source "ChessBase"]
[SourceQuality "1"]
[TimeControl "5400+30"]

{[%evp 42,130,0,32767,32767,32767,32767,32767,32767,32767,32767,32767,0,0,0,0,21,18,61,90,118,157,201,211,241,229,223,300,247,289,278,383,401,264,349,304,228,265,32767,32767,541,658,32767,95,87,96,146,135,164,165,32767,32767,262,32767,32767,145,164,0,92,180,168,216,1550,6016,6045,1071,831,291,193,310,572,0,129,127,29980,130,391,177,330,0,224,0,189,140,556,32767,167,0,341,77,97]} 1. d4 {[%emt 0:00:00]} e5 {[%emt 0:00:48]} 2. dxe5 {[%emt 0:00:00]} Nc6 {[%emt 0:00:01]} 3. Nf3 {[%emt 0:00:07]} f6 {[%emt 0:00:16]} 4. exf6 {[%emt 0:00:34]} Nxf6 {[%emt 0:00:02]} 5. Bg5 {[%emt 0:00:40]} Bc5 {[%emt 0:00:57]} 6. e3 {[%emt 0:00:15]} d6 {[%emt 0:01:42]} 7. Nc3 {[%emt 0:05:29]} Be6 {[%emt 0:01:50]} 8. Ne4 {[%emt 0:03:05]} Bb6 {[%emt 0:04:02]} 9. Bb5 {[%emt 0:04:45]} a6 {[%emt 0:01:49]} 10. Bxc6+ {[%emt 0:02:35]} bxc6 {[%emt 0:00:03]} 11. Nd4 {[%emt 0:01:05]} Bd5 {[%emt 0:05:01]} 12. Nxf6+ {[%emt 0:09:04]} gxf6 {[%emt 0:00:04]} 13. Bh4 {[%emt 0:04:38]} Qe7 {[%emt 0:03:31]} 14. Qd3 {[%emt 0:13:22]} Be4 {[%emt 0:09:42]} 15. Bxf6 {[%emt 0:08:54]} Bxd3 {[%emt 0:06:29]} 16. Bxe7 {[%emt 0:00:09]} Be4 {[%emt 0:04:15]} 17. Bh4 {[%emt 0:02:43]} c5 {[%emt 0:01:25]} 18. Ne2 {[%emt 0:08:27]} Bxc2 {[%emt 0:01:20]} 19. Rc1 {[%emt 0:02:39]} Ba5+ {[%emt 0:00:29]} 20. Nc3 {[%emt 0:07:19]} Bd3 {[%emt 0:00:56]} 21. f3 {[%emt 0:03:58]} Rb8 {[%emt 0:04:03]} 22. b3 {[%emt 0:05:58]} c4 {[%emt 0:03:43]} 23. Kd2 {[%emt 0:06:07]} d5 {[%emt 0:03:28]} 24. Bf6 {[%emt 0:01:54]} Rg8 {[%emt 0:00:47]} 25. g4 {[%emt 0:02:32]} Kd7 {[%emt 0:01:10]} 26. bxc4 {[%emt 0:01:21]} dxc4 {[%emt 0:00:44]} 27. e4 {[%emt 0:00:59]} Ke6 {[%emt 0:03:07]} 28. g5 $1 {[%emt 0:01:07]} Rb2+ {[%emt 0:01:23]} 29. Ke3 {[%emt 0:00:43]} c5 {[%emt 0:04:57]} 30. h4 {[%emt 0:00:18]} h5 {[%emt 0:01:16]} 31. Rhd1 {[%emt 0:01:34]} Bxc3 {[%emt 0:01:43]} 32. Rxc3 {[%emt 0:00:30]} Rxa2 {[%emt 0:00:23]} (32... Re2+ $142 33. Kf4 a5) 33. Rd2 {[%emt 0:00:45]} Rxd2 {[%emt 0:00:58]} 34. Kxd2 {[%emt 0:00:07]} Rb8 {[%emt 0:06:11]} 35. Ra3 {[%emt 0:00:13]} Rb6 {[%emt 0:00:07]} 36. Ke3 {[%emt 0:00:16]} Bc2 {[%emt 0:02:27]} 37. Kf4 {[%emt 0:01:22]} Rd6 {[%emt 0:02:11]} 38. Ra5 {[%emt 0:00:47]} Rc6 {[%emt 0:01:38]} 39. Bc3 {[%emt 0:00:15]} Bd1 {[%emt 0:01:05]} 40. g6 {[%emt 0:01:09]} Ke7 {[%emt 0:00:16]} 41. g7 {[%emt 0:01:03]} Kf7 {[%emt 0:00:14]} 42. Kg5 $2 {[%emt 0:01:21]} (42. Ra1 $18 {ist viel giftiger.} Bc2 43. Rg1) 42... Bxf3 {[%emt 0:00:23]} 43. Kf4 {[%emt 0:00:10]} Bg4 {[%emt 0:00:47]} 44. Ra2 {[%emt 0:00:36]} Rd6 {[%emt 0:02:10] [#]} 45. Rb2 $1 {[%emt 0:00:41]} Rd8 {[%emt 0:01:05]} 46. Rb6 {[%emt 0:00:29]} Ra8 {[%emt 0:02:48]} 47. Rb7+ {[%emt 0:00:24]} Kg8 $1 {[%emt 0:00:12]} 48. Ba5 {[%emt 0:00:38]} Re8 {[%emt 0:02:20] [#]} 49. Bc3 {[%emt 0:00:37]} (49. Ra7 $1 $16) 49... Ra8 {[%emt 0:00:19]} 50. Rc7 {[%emt 0:00:13]} Be6 {[%emt 0:04:05]} 51. Rxc5 {[%emt 0:00:16]} Rc8 $2 {[%emt 0:02:02]} (51... Bg4 52. Rxc4 Rc8 53. Rxc8+ Bxc8) 52. Rxh5 {[%emt 0:00:24]} Kf7 {[%emt 0:00:42]} 53. Ra5 {[%emt 0:00:46]} (53. Rh6 $142 a5 54. h5) 53... Rc6 {[%emt 0:00:24]} 54. h5 {[%emt 0:00:21]} (54. Rg5 $142 Rc8 55. h5) 54... Kg8 $11 {[%emt 0:02:10]} 55. Ra2 {[%emt 0:00:58]} (55. Rg5 Bf7) 55... Bf7 {[%emt 0:00:18]} 56. Ra5 $2 {[%emt 0:00:26]} (56. Rb2 $18 Kh7 57. Rb7) 56... Kh7 $1 {[%emt 0:00:09]} 57. Rg5 {[%emt 0:00:39]} (57. Kg5 $16) 57... Rb6 $2 {[%emt 0:01:11] [#]} (57... Bg8 $16 58. Rf5 Rb6 $16 59. Rf8 Rb5) 58. Rf5 $2 {[%emt 0:00:34]} (58. g8=B+ $1 {[%mdl 512] setzt Matt} Bxg8 59. Rg7+ Kh6 60. Rxg8 Kxh5 61. e5 Kh6 62. Kf5 Kh7 63. Rc8) 58... Kg8 $2 $11 {[%emt 0:00:33] and Black has nothing to worry.} 59. Kg5 {[%emt 0:00:31]} Re6 {[%emt 0:00:30]} (59... Rb3 $142) 60. Kf4 $2 {[%emt 0:00:18]} (60. e5 $18 Rc6 61. Rf2) 60... Rc6 $2 {[%emt 0:00:18]} 61. Ra5 {[%emt 0:00:37]} (61. Kg4 $18 {und Weiss behält klar die Oberhand.}) 61... Kh7 {[%emt 0:00:17]} 62. Re5 {[%emt 0:00:31]} Rd6 $2 {[%emt 0:00:46] [#]} (62... Rf6+ $16 63. Kg4 Rf1) 63. Ra5 $2 {[%emt 0:00:13]} (63. g8=N $1 $18 {[%mdl 512]} Bxg8 64. Re7+ Kh6 65. Re8) 63... Rc6 {[%emt 0:00:01]} 64. Rf5 $2 {[%emt 0:00:43]} Kg8 {[%emt 0:00:04]} 65. e5 $2 {[%emt 0:00:21]} Rh6 $16 {[%emt 0:05:03]} 66. Rf6 {[%emt 0:00:40]} Rxf6+ {[%emt 0:01:56]} 67. exf6 {[%emt 0:00:07]} Bxh5 {[%emt 0:00:14]} 68. Ke5 {[%emt 0:00:44]} Bf7 {[%emt 0:00:46]} 69. Kd6 {[%emt 0:00:17]} Be8 {[%emt 0:00:41]} 70. Kc5 {[%emt 0:00:18]} Bf7 {[%emt 0:00:02]} 71. Kb6 {[%emt 0:00:09]} Bd5 {[%emt 0:00:38]} 72. Kxa6 {[%emt 0:00:10]} Bf7 {[%emt 0:00:16]} 73. Kb6 {[%emt 0:00:26]} Be6 {[%emt 0:00:07]} 1/2-1/2

[Event "World Chess Trophy 2018"]
[Site "Tenerife"]
[Date "2018.06.18"]
[Round "3"]
[White "Rutherford, William"]
[Black "Aledo Yanguas, David"]
[Result "1-0"]
[ECO "A47"]
[WhiteElo "1959"]
[BlackElo "1986"]
[Annotator "NA"]
[PlyCount "79"]
[EventDate "2018.06.17"]
[EventType "swiss"]
[EventCountry "ESP"]
[SourceTitle "playchess.com"]
[Source "ChessBase"]
[SourceQuality "1"]
[TimeControl "5400+30"]

1. d4 {[%emt 0:00:00]} Nf6 {[%emt 0:00:12]} 2. Nf3 {[%emt 0:00:00]} e6 {[%emt 0:00:03]} 3. Bf4 {[%emt 0:00:01]} b6 {[%emt 0:01:12]} 4. e3 {[%emt 0:00:23]} Bb7 {[%emt 0:00:11]} 5. Bd3 {[%emt 0:00:56]} Be7 {[%emt 0:00:43]} 6. h3 {[%emt 0:00:55]} h6 {[%emt 0:00:17]} 7. a3 {[%emt 0:04:24]} c5 {[%emt 0:00:09]} 8. c4 {[%emt 0:02:15]} d5 {[%emt 0:00:42]} 9. Nc3 {[%emt 0:00:35]} Ne4 {[%emt 0:01:13]} 10. cxd5 {[%emt 0:05:40]} exd5 {[%emt 0:00:12]} 11. Bb5+ {[%emt 0:01:37]} Bc6 {[%emt 0:01:33]} 12. Qa4 {[%emt 0:04:02]} Qd7 {[%emt 0:00:29]} 13. Nxd5 {[%emt 0:07:52]} Bd8 {[%emt 0:11:10]} 14. Bxc6 {[%emt 0:03:51]} Nxc6 {[%emt 0:00:05]} 15. Nc3 {[%emt 0:01:18]} f5 {[%emt 0:01:36]} 16. Rd1 {[%emt 0:05:18]} Nxc3 {[%emt 0:01:35]} 17. bxc3 {[%emt 0:00:20]} Bf6 {[%emt 0:00:43]} 18. O-O {[%emt 0:01:50]} cxd4 {[%emt 0:00:38]} 19. cxd4 {[%emt 0:05:56]} g5 {[%emt 0:01:24]} 20. d5 {[%emt 0:05:34]} Ne5 {[%emt 0:00:52]} 21. Qxd7+ {[%emt 0:00:23]} Nxd7 {[%emt 0:00:06]} 22. Bd6 {[%emt 0:01:07]} Be7 {[%emt 0:03:26]} 23. Bxe7 {[%emt 0:00:27]} Kxe7 {[%emt 0:00:05]} 24. Nd4 {[%emt 0:00:38]} Kf6 {[%emt 0:00:19]} 25. f4 {[%emt 0:00:49]} g4 {[%emt 0:01:26]} 26. hxg4 {[%emt 0:03:15]} fxg4 {[%emt 0:01:11]} 27. e4 {[%emt 0:00:55]} Rhf8 {[%emt 0:01:48]} 28. e5+ {[%emt 0:00:43]} Nxe5 {[%emt 0:00:04]} 29. fxe5+ {[%emt 0:00:45]} Kxe5 {[%emt 0:00:02]} 30. Rfe1+ {[%emt 0:07:38]} Kd6 {[%emt 0:00:13]} 31. Nb5+ {[%emt 0:02:02]} Kd7 {[%emt 0:00:14]} 32. Re6 {[%emt 0:03:06]} h5 {[%emt 0:02:06]} 33. Rd6+ {[%emt 0:01:19]} Ke7 {[%emt 0:02:36]} 34. Re1+ {[%emt 0:00:43]} Kf7 {[%emt 0:00:07]} 35. Rd7+ {[%emt 0:02:36]} Kf6 {[%emt 0:00:17]} 36. Re6+ {[%emt 0:02:48]} Kf5 {[%emt 0:00:35]} 37. g3 {[%emt 0:02:50]} Rg8 {[%emt 0:00:53]} 38. Nd6+ {[%emt 0:03:09]} Kg5 {[%emt 0:00:07]} 39. Ne4+ {[%emt 0:00:23]} Kf5 {[%emt 0:00:09]} 40. Rf7# {[%emt 0:00:08]} 1-0